[Event "*** Titled Tuesday Blitz"]
[Site "Chess.com"]
[Date "2020.04.14"]
[Round "9"]
[White "ahachess"]
[Black "IMRosen"]
[Result "1-0"]
[WhiteElo "2347"]
[BlackElo "2467"]
[TimeControl "180+1"]
[EndTime "11:43:39 PDT"]
[Termination "ahachess won on time"]

1. d4 {[%clk 0:03:00.6]} 1... d5 {[%clk 0:02:59.5]} 2. c4 {[%clk 0:03:00.6]}
2... e6 {[%clk 0:02:59.3]} 3. Nf3 {[%clk 0:03:00.2]} 3... Nf6 {[%clk 0:02:58.8]}
4. Qc2 {[%clk 0:03:00.7]} 4... Be7 {[%clk 0:02:49.5]} 5. Bg5 {[%clk 0:03:00.5]}
5... O-O {[%clk 0:02:49.5]} 6. e3 {[%clk 0:03:00.6]} 6... a6 {[%clk 0:02:44.6]}
7. Nc3 {[%clk 0:02:57.1]} 7... Nbd7 {[%clk 0:02:43.2]} 8. Rd1 {[%clk 0:02:51.4]}
8... dxc4 {[%clk 0:02:41.3]} 9. Bxc4 {[%clk 0:02:51]} 9... b5 {[%clk 0:02:42.1]}
10. Be2 {[%clk 0:02:50.7]} 10... Bb7 {[%clk 0:02:42.8]} 11. O-O {[%clk
0:02:48.1]} 11... Qc8 {[%clk 0:02:35.2]} 12. Ne5 {[%clk 0:02:44.4]} 12... h6
{[%clk 0:02:28.6]} 13. Bh4 {[%clk 0:02:35.4]} 13... Re8 {[%clk 0:02:26.5]} 14.
f4 {[%clk 0:02:23.3]} 14... c5 {[%clk 0:02:23.1]} 15. Nxd7 {[%clk 0:02:18.7]}
15... Nxd7 {[%clk 0:02:22.3]} 16. Bxe7 {[%clk 0:02:17.9]} 16... Rxe7 {[%clk
0:02:23.2]} 17. Qd2 {[%clk 0:02:08.8]} 17... b4 {[%clk 0:02:11.9]} 18. Na4
{[%clk 0:02:04.8]} 18... Qc6 {[%clk 0:01:52.8]} 19. Bf3 {[%clk 0:02:04.6]} 19...
Qxa4 {[%clk 0:01:53.2]} 20. Bxb7 {[%clk 0:02:04.3]} 20... Rb8 {[%clk 0:01:54]}
21. b3 {[%clk 0:01:56.4]} 21... Qb5 {[%clk 0:01:50]} 22. Be4 {[%clk 0:01:53.9]}
22... Nf6 {[%clk 0:01:49.7]} 23. Bd3 {[%clk 0:01:49.8]} 23... Qb6 {[%clk
0:01:50.3]} 24. dxc5 {[%clk 0:01:49.3]} 24... Qxc5 {[%clk 0:01:48.2]} 25. Bxa6
{[%clk 0:01:46.7]} 25... Ra7 {[%clk 0:01:35.9]} 26. Bc4 {[%clk 0:01:46]} 26...
Rba8 {[%clk 0:01:34]} 27. Qd4 {[%clk 0:01:33]} 27... Qh5 {[%clk 0:01:04.3]} 28.
Rd2 {[%clk 0:01:27.8]} 28... Rd7 {[%clk 0:01:02.7]} 29. Qb2 {[%clk 0:01:21]}
29... Rda7 {[%clk 0:00:41.1]} 30. Qd4 {[%clk 0:01:13.2]} 30... Rd7 {[%clk
0:00:23.5]} 31. Qb2 {[%clk 0:01:12.7]} 31... Qc5 {[%clk 0:00:15.9]} 32. Re1
{[%clk 0:01:03.6]} 32... Rad8 {[%clk 0:00:15.4]} 33. Rxd7 {[%clk 0:01:00.9]}
33... Rxd7 {[%clk 0:00:16.3]} 34. h3 {[%clk 0:00:59.6]} 34... Ne4 {[%clk
0:00:16.3]} 35. Re2 {[%clk 0:00:47.9]} 35... Nc3 {[%clk 0:00:16.5]} 36. Re1
{[%clk 0:00:44.8]} 36... Ne4 {[%clk 0:00:16.8]} 37. Re2 {[%clk 0:00:44.3]} 37...
Rd1+ {[%clk 0:00:17.3]} 38. Kh2 {[%clk 0:00:44.2]} 38... Nc3 {[%clk 0:00:15.7]}
39. Rf2 {[%clk 0:00:27.7]} 39... Qxe3 {[%clk 0:00:11.8]} 40. Rf3 {[%clk
0:00:26.5]} 40... Qg1+ {[%clk 0:00:07.4]} 41. Kg3 {[%clk 0:00:26.4]} 41... Ne4+
{[%clk 0:00:06.7]} 42. Kh4 {[%clk 0:00:27]} 42... Qe1+ {[%clk 0:00:04]} 43. g3
{[%clk 0:00:16.3]} 43... Nd2 {[%clk 0:00:04.4]} 44. Rd3 {[%clk 0:00:13]} 44...
Nf1 {[%clk 0:00:02.6]} 45. Rf3 {[%clk 0:00:06.6]} 45... Rd2 {[%clk 0:00:01.6]}
46. Qe5 {[%clk 0:00:05.7]} 1-0

[Event "*** Titled Tuesday Blitz"]
[Site "Chess.com"]
[Date "2020.04.14"]
[Round "9"]
[White "rynos0411"]
[Black "ClockworkKubrick"]
[Result "1-0"]
[WhiteElo "2394"]
[BlackElo "2201"]
[TimeControl "180+1"]
[EndTime "11:43:42 PDT"]
[Termination "rynos0411 won by resignation"]

1. e4 {[%clk 0:03:00.9]} 1... d6 {[%clk 0:03:00.3]} 2. d4 {[%clk 0:03:00.2]}
2... Nf6 {[%clk 0:03:00.9]} 3. Nc3 {[%clk 0:03:00.3]} 3... g6 {[%clk 0:03:01.5]}
4. Be3 {[%clk 0:02:59.7]} 4... Bg7 {[%clk 0:03:01.7]} 5. f3 {[%clk 0:02:59.5]}
5... O-O {[%clk 0:03:02.3]} 6. Qd2 {[%clk 0:02:59.6]} 6... c6 {[%clk 0:03:02.8]}
7. O-O-O {[%clk 0:02:54.8]} 7... Nbd7 {[%clk 0:03:02.8]} 8. g4 {[%clk
0:02:53.3]} 8... b5 {[%clk 0:03:02.1]} 9. h4 {[%clk 0:02:53]} 9... h5 {[%clk
0:03:01.6]} 10. gxh5 {[%clk 0:02:49.4]} 10... Nxh5 {[%clk 0:03:01]} 11. Nge2
{[%clk 0:02:46.1]} 11... e5 {[%clk 0:02:56.6]} 12. f4 {[%clk 0:02:06.4]} 12...
Qa5 {[%clk 0:02:54.7]} 13. a3 {[%clk 0:01:57.6]} 13... Nb6 {[%clk 0:02:35]} 14.
Kb1 {[%clk 0:00:42.4]} 14... Nc4 {[%clk 0:02:32]} 15. Qd3 {[%clk 0:00:42.1]}
15... Nxe3 {[%clk 0:02:30.1]} 16. Qxe3 {[%clk 0:00:41.5]} 16... b4 {[%clk
0:02:29.3]} 17. axb4 {[%clk 0:00:32.6]} 17... Qxb4 {[%clk 0:02:29.1]} 18. dxe5
{[%clk 0:00:32.6]} 18... Rb8 {[%clk 0:02:27.8]} 19. b3 {[%clk 0:00:29.3]} 19...
dxe5 {[%clk 0:02:24.9]} 20. f5 {[%clk 0:00:28.9]} 20... Nf4 {[%clk 0:02:17.7]}
21. h5 {[%clk 0:00:18.4]} 21... Ba6 {[%clk 0:02:04.2]} 22. Na2 {[%clk
0:00:11.8]} 22... Qa3 {[%clk 0:02:00]} 23. h6 {[%clk 0:00:11]} 23... Bf6 {[%clk
0:01:52.2]} 24. fxg6 {[%clk 0:00:08.7]} 24... fxg6 {[%clk 0:01:51.7]} 25. Rh2
{[%clk 0:00:05]} 25... Kh7 {[%clk 0:01:43.5]} 26. Qc1 {[%clk 0:00:04.9]} 26...
Qa5 {[%clk 0:01:32.9]} 27. Nxf4 {[%clk 0:00:04.1]} 27... exf4 {[%clk 0:01:33.1]}
28. Rd7+ {[%clk 0:00:03.6]} 28... Kh8 {[%clk 0:01:30.7]} 29. Rxa7 {[%clk
0:00:03.4]} 29... Rb6 {[%clk 0:01:28.9]} 30. Bxa6 {[%clk 0:00:02.5]} 30... Rxa6
{[%clk 0:01:27.2]} 31. Rxa6 {[%clk 0:00:03.4]} 31... Qxa6 {[%clk 0:01:27.3]} 32.
Qxf4 {[%clk 0:00:04.3]} 32... c5 {[%clk 0:01:08.2]} 33. e5 {[%clk 0:00:04.5]}
33... Be7 {[%clk 0:01:06.5]} 34. Qe4 {[%clk 0:00:05]} 34... Kh7 {[%clk
0:01:05.9]} 35. Rg2 {[%clk 0:00:04.7]} 35... Qe6 {[%clk 0:01:04]} 36. Kb2 {[%clk
0:00:04.9]} 36... Rf5 {[%clk 0:00:53.1]} 37. Re2 {[%clk 0:00:04.7]} 37... Kxh6
{[%clk 0:00:51.7]} 38. Nc3 {[%clk 0:00:04.7]} 38... Kg7 {[%clk 0:00:51]} 39. Nd5
{[%clk 0:00:04.9]} 39... Bf8 {[%clk 0:00:46.3]} 40. Nf4 {[%clk 0:00:05.2]} 40...
Qd7 {[%clk 0:00:38]} 41. e6 {[%clk 0:00:04.7]} 41... Qd4+ {[%clk 0:00:36.1]} 42.
Qxd4+ {[%clk 0:00:03.7]} 42... cxd4 {[%clk 0:00:36.5]} 43. Nd3 {[%clk
0:00:03.7]} 43... Kf6 {[%clk 0:00:34.3]} 44. Re4 {[%clk 0:00:03.7]} 44... Bd6
{[%clk 0:00:30.5]} 45. Rxd4 {[%clk 0:00:03.6]} 45... Kxe6 {[%clk 0:00:30.9]} 46.
Re4+ {[%clk 0:00:03]} 46... Kf6 {[%clk 0:00:30.5]} 47. c4 {[%clk 0:00:03.2]}
47... g5 {[%clk 0:00:30.6]} 48. b4 {[%clk 0:00:02.1]} 48... Bf4 {[%clk
0:00:30.9]} 49. Nxf4 {[%clk 0:00:01.8]} 49... gxf4 {[%clk 0:00:31.8]} 50. Re1
{[%clk 0:00:01]} 50... f3 {[%clk 0:00:32.7]} 51. Rf1 {[%clk 0:00:01.9]} 51...
Ke5 {[%clk 0:00:32.6]} 52. Kc3 {[%clk 0:00:02.8]} 52... Ke4 {[%clk 0:00:33.1]}
53. c5 {[%clk 0:00:03.3]} 53... Ke3 {[%clk 0:00:33.4]} 54. c6 {[%clk 0:00:03.8]}
54... Ke2 {[%clk 0:00:33]} 55. Ra1 {[%clk 0:00:04.4]} 55... f2 {[%clk
0:00:32.6]} 56. Ra2+ {[%clk 0:00:04.4]} 56... Ke3 {[%clk 0:00:32.9]} 57. Rxf2
{[%clk 0:00:05.3]} 57... Kxf2 {[%clk 0:00:32.5]} 58. Kc4 {[%clk 0:00:05.3]}
58... Ke3 {[%clk 0:00:32.7]} 59. b5 {[%clk 0:00:06.2]} 59... Ke4 {[%clk
0:00:32.7]} 60. b6 {[%clk 0:00:06.6]} 60... Ke5 {[%clk 0:00:32.3]} 61. b7 {[%clk
0:00:06.5]} 61... Rf8 {[%clk 0:00:26.3]} 62. c7 {[%clk 0:00:06.8]} 62... Kd6
{[%clk 0:00:26.1]} 63. c8=Q {[%clk 0:00:05.3]} 63... Rxc8+ {[%clk 0:00:25]} 64.
bxc8=Q {[%clk 0:00:06.2]} 1-0

[Event "*** Titled Tuesday Blitz"]
[Site "Chess.com"]
[Date "2020.04.14"]
[Round "9"]
[White "BahadirOzen"]
[Black "viktorskliarov"]
[Result "0-1"]
[WhiteElo "2812"]
[BlackElo "2670"]
[TimeControl "180+1"]
[EndTime "11:43:44 PDT"]
[Termination "viktorskliarov won by resignation"]

1. Nf3 {[%clk 0:03:00.9]} 1... g6 {[%clk 0:02:53.1]} 2. c4 {[%clk 0:03:00.9]}
2... Bg7 {[%clk 0:02:53.5]} 3. e4 {[%clk 0:03:01.1]} 3... c5 {[%clk 0:02:50.5]}
4. d4 {[%clk 0:03:01.2]} 4... cxd4 {[%clk 0:02:51.4]} 5. Nxd4 {[%clk 0:03:01.7]}
5... Nc6 {[%clk 0:02:51.8]} 6. Be3 {[%clk 0:03:02.2]} 6... Nf6 {[%clk
0:02:51.9]} 7. Nc3 {[%clk 0:03:02.2]} 7... Ng4 {[%clk 0:02:51.8]} 8. Qxg4 {[%clk
0:03:01.7]} 8... Nxd4 {[%clk 0:02:47.5]} 9. Qd1 {[%clk 0:03:00.7]} 9... Ne6
{[%clk 0:02:47.3]} 10. Qd2 {[%clk 0:02:57.2]} 10... Qa5 {[%clk 0:02:46.4]} 11.
Rc1 {[%clk 0:02:41.7]} 11... b6 {[%clk 0:02:46.1]} 12. Be2 {[%clk 0:02:39.9]}
12... Bb7 {[%clk 0:02:44.9]} 13. f3 {[%clk 0:02:39.5]} 13... g5 {[%clk
0:02:36.9]} 14. O-O {[%clk 0:02:29.2]} 14... Be5 {[%clk 0:02:36.1]} 15. Rfd1
{[%clk 0:02:27.1]} 15... d6 {[%clk 0:02:30.5]} 16. Nd5 {[%clk 0:02:14]} 16...
Qxd2 {[%clk 0:02:28.9]} 17. Rxd2 {[%clk 0:02:13.3]} 17... Rc8 {[%clk 0:02:16.4]}
18. b3 {[%clk 0:01:58.3]} 18... Bxd5 {[%clk 0:02:02.1]} 19. exd5 {[%clk
0:01:53.6]} 19... Bf4 {[%clk 0:01:59.9]} 20. Rc3 {[%clk 0:01:51.5]} 20... Bxe3+
{[%clk 0:01:48.6]} 21. Rxe3 {[%clk 0:01:51]} 21... Nf4 {[%clk 0:01:48.9]} 22.
Bd3 {[%clk 0:01:45.2]} 22... Nxd3 {[%clk 0:01:33.9]} 23. Rdxd3 {[%clk
0:01:40.7]} 23... Kd7 {[%clk 0:01:32.8]} 24. Re4 {[%clk 0:01:37.8]} 24... a6
{[%clk 0:01:22.5]} 25. Rde3 {[%clk 0:01:37.1]} 25... Rhe8 {[%clk 0:01:22.2]} 26.
h4 {[%clk 0:01:31.5]} 26... h6 {[%clk 0:01:20.6]} 27. hxg5 {[%clk 0:01:31]}
27... hxg5 {[%clk 0:01:21.5]} 28. a4 {[%clk 0:01:13.8]} 28... e5 {[%clk
0:01:04.2]} 29. dxe6+ {[%clk 0:01:11.6]} 29... fxe6 {[%clk 0:01:04.2]} 30. Rd4
{[%clk 0:01:07.3]} 30... b5 {[%clk 0:00:47.3]} 31. axb5 {[%clk 0:01:05.1]} 31...
axb5 {[%clk 0:00:47.2]} 32. Kf2 {[%clk 0:00:58]} 32... bxc4 {[%clk 0:00:41.7]}
33. bxc4 {[%clk 0:00:58.9]} 33... Rc6 {[%clk 0:00:40.1]} 34. Rg4 {[%clk
0:00:49.9]} 34... Rg8 {[%clk 0:00:36.5]} 35. f4 {[%clk 0:00:48.6]} 35... Rxc4
{[%clk 0:00:35.3]} 36. g3 {[%clk 0:00:45.1]} 36... Rc5 {[%clk 0:00:31.9]} 37.
Ra3 {[%clk 0:00:41]} 37... Ke7 {[%clk 0:00:29.8]} 38. fxg5 {[%clk 0:00:38.7]}
38... Rgxg5 {[%clk 0:00:28.9]} 39. Rh4 {[%clk 0:00:37.9]} 39... Rc2+ {[%clk
0:00:22.2]} 40. Kf3 {[%clk 0:00:37.7]} 40... Rf5+ {[%clk 0:00:20.9]} 41. Rf4
{[%clk 0:00:38.1]} 41... Rxf4+ {[%clk 0:00:20.8]} 42. gxf4 {[%clk 0:00:37.8]}
42... Kf6 {[%clk 0:00:19.5]} 43. Ra8 {[%clk 0:00:35.8]} 43... d5 {[%clk
0:00:19.1]} 44. Ke3 {[%clk 0:00:34.1]} 44... Rc4 {[%clk 0:00:18.5]} 45. Rf8+
{[%clk 0:00:33.3]} 45... Ke7 {[%clk 0:00:18.1]} 46. Rh8 {[%clk 0:00:32.6]} 46...
Re4+ {[%clk 0:00:17.8]} 47. Kf3 {[%clk 0:00:33]} 47... Ra4 {[%clk 0:00:17.9]}
48. Ke3 {[%clk 0:00:32.6]} 48... Kd6 {[%clk 0:00:18.1]} 49. Rc8 {[%clk
0:00:31.6]} 49... Kd7 {[%clk 0:00:17.6]} 50. Rh8 {[%clk 0:00:30.7]} 50... Ra3+
{[%clk 0:00:16.7]} 51. Kd4 {[%clk 0:00:26.9]} 51... Rf3 {[%clk 0:00:16.5]} 52.
Rh4 {[%clk 0:00:27]} 52... Kd6 {[%clk 0:00:16.6]} 53. Rg4 {[%clk 0:00:20.2]}
53... Rxf4+ {[%clk 0:00:16.7]} 54. Rxf4 {[%clk 0:00:20.7]} 54... e5+ {[%clk
0:00:17.4]} 55. Ke3 {[%clk 0:00:21.6]} 55... exf4+ {[%clk 0:00:17.9]} 56. Kxf4
{[%clk 0:00:22.5]} 56... Kc5 {[%clk 0:00:18.4]} 57. Ke3 {[%clk 0:00:22.9]} 57...
Kc4 {[%clk 0:00:18.8]} 58. Kd2 {[%clk 0:00:13.9]} 58... Kd4 {[%clk 0:00:18.3]}
59. Kd1 {[%clk 0:00:14.3]} 59... Kd3 {[%clk 0:00:18.3]} 60. Kc1 {[%clk
0:00:14.4]} 60... Ke2 {[%clk 0:00:17.8]} 0-1

[Event "*** Titled Tuesday Blitz"]
[Site "Chess.com"]
[Date "2020.04.14"]
[Round "9"]
[White "JakubPulpan"]
[Black "ChessicallyInclined"]
[Result "0-1"]
[WhiteElo "2743"]
[BlackElo "2614"]
[TimeControl "180+1"]
[EndTime "11:43:44 PDT"]
[Termination "ChessicallyInclined won by resignation"]

1. e4 {[%clk 0:03:00.7]} 1... d6 {[%clk 0:02:58.2]} 2. d4 {[%clk 0:03:00.4]}
2... Nf6 {[%clk 0:02:58.5]} 3. Nc3 {[%clk 0:03:00.5]} 3... g6 {[%clk 0:02:58.9]}
4. Nf3 {[%clk 0:03:00.4]} 4... Bg7 {[%clk 0:02:58.9]} 5. Be2 {[%clk 0:03:00]}
5... O-O {[%clk 0:02:58.1]} 6. O-O {[%clk 0:03:00.5]} 6... c6 {[%clk 0:02:58.6]}
7. a4 {[%clk 0:03:00]} 7... Nbd7 {[%clk 0:02:57.9]} 8. h3 {[%clk 0:02:55.1]}
8... Qc7 {[%clk 0:02:57]} 9. Be3 {[%clk 0:02:55.2]} 9... b6 {[%clk 0:02:52.7]}
10. Qd2 {[%clk 0:02:37.5]} 10... Bb7 {[%clk 0:02:50.7]} 11. Rfd1 {[%clk
0:02:36.7]} 11... a6 {[%clk 0:02:42.2]} 12. Bh6 {[%clk 0:02:03.9]} 12... e5
{[%clk 0:02:37.4]} 13. Bxg7 {[%clk 0:02:04.4]} 13... Kxg7 {[%clk 0:02:36.8]} 14.
dxe5 {[%clk 0:02:05.3]} 14... dxe5 {[%clk 0:02:35.4]} 15. Qd6 {[%clk 0:02:04.9]}
15... Qxd6 {[%clk 0:02:30.1]} 16. Rxd6 {[%clk 0:02:05.8]} 16... Rfe8 {[%clk
0:02:29.3]} 17. Nd2 {[%clk 0:01:57.6]} 17... b5 {[%clk 0:02:20.9]} 18. f3 {[%clk
0:01:51.8]} 18... Kf8 {[%clk 0:02:18.8]} 19. Nb3 {[%clk 0:01:49.3]} 19... Ke7
{[%clk 0:02:13.5]} 20. Rdd1 {[%clk 0:01:44.7]} 20... Rad8 {[%clk 0:01:37.8]} 21.
Na5 {[%clk 0:01:30.9]} 21... Ba8 {[%clk 0:01:36]} 22. Na2 {[%clk 0:01:31.7]}
22... Nc5 {[%clk 0:01:14.4]} 23. Nb4 {[%clk 0:01:29.8]} 23... Rxd1+ {[%clk
0:01:12.2]} 24. Rxd1 {[%clk 0:01:29.5]} 24... Rc8 {[%clk 0:01:09.3]} 25. b3
{[%clk 0:01:21.7]} 25... Nh5 {[%clk 0:00:56.2]} 26. Kf2 {[%clk 0:01:16.7]} 26...
Nf4 {[%clk 0:00:56.2]} 27. Bf1 {[%clk 0:01:14.3]} 27... Nfe6 {[%clk 0:00:53.7]}
28. c3 {[%clk 0:01:04.4]} 28... f5 {[%clk 0:00:46.9]} 29. exf5 {[%clk
0:01:03.4]} 29... gxf5 {[%clk 0:00:47.8]} 30. axb5 {[%clk 0:01:00.7]} 30... axb5
{[%clk 0:00:38.2]} 31. c4 {[%clk 0:01:00.8]} 31... Nd4 {[%clk 0:00:32]} 32. f4
{[%clk 0:00:53.3]} 32... Ne4+ {[%clk 0:00:24.8]} 33. Kg1 {[%clk 0:00:52.5]}
33... c5 {[%clk 0:00:18.8]} 34. Nd3 {[%clk 0:00:51.1]} 34... bxc4 {[%clk
0:00:16.1]} 35. Nxc4 {[%clk 0:00:50.2]} 35... exf4 {[%clk 0:00:15.8]} 36. Nxf4
{[%clk 0:00:50.2]} 36... Rb8 {[%clk 0:00:12.8]} 37. Ra1 {[%clk 0:00:35.1]} 37...
Bc6 {[%clk 0:00:07.9]} 38. Nd2 {[%clk 0:00:24.6]} 38... Nxd2 {[%clk 0:00:07.4]}
39. Ra7+ {[%clk 0:00:24.4]} 39... Kd6 {[%clk 0:00:07.5]} 40. Rxh7 {[%clk
0:00:24.5]} 40... Rxb3 {[%clk 0:00:06.7]} 41. Rh6+ {[%clk 0:00:25.4]} 41... Ke5
{[%clk 0:00:06.4]} 42. Nd3+ {[%clk 0:00:22.1]} 42... Kd5 {[%clk 0:00:05]} 43.
Nf4+ {[%clk 0:00:05.8]} 43... Ke4 {[%clk 0:00:04.9]} 44. Ne6 {[%clk 0:00:05.5]}
44... Rb1 {[%clk 0:00:02.9]} 45. Nxd4 {[%clk 0:00:04.5]} 45... Rxf1+ {[%clk
0:00:03.3]} 46. Kh2 {[%clk 0:00:05.4]} 46... cxd4 {[%clk 0:00:03.7]} 47. Rxc6
{[%clk 0:00:06.1]} 47... Ke3 {[%clk 0:00:04.2]} 48. h4 {[%clk 0:00:06.8]} 48...
Ne4 {[%clk 0:00:04.4]} 49. Rc1 {[%clk 0:00:07.1]} 49... Rxc1 {[%clk 0:00:04]}
0-1

[Event "*** Titled Tuesday Blitz"]
[Site "Chess.com"]
[Date "2020.04.14"]
[Round "9"]
[White "CookiesAndIceCream"]
[Black "chessintuit"]
[Result "0-1"]
[WhiteElo "2379"]
[BlackElo "2613"]
[TimeControl "180+1"]
[EndTime "11:43:44 PDT"]
[Termination "chessintuit won on time"]

1. e4 {[%clk 0:03:00.9]} 1... e5 {[%clk 0:02:59.7]} 2. Nf3 {[%clk 0:03:01.2]}
2... Nc6 {[%clk 0:03:00.1]} 3. Nc3 {[%clk 0:03:00.6]} 3... Nf6 {[%clk
0:02:59.6]} 4. Bb5 {[%clk 0:03:00.5]} 4... Nd4 {[%clk 0:02:59.3]} 5. Bc4 {[%clk
0:02:58.5]} 5... Bc5 {[%clk 0:02:58.6]} 6. d3 {[%clk 0:02:58.2]} 6... d6 {[%clk
0:02:58.1]} 7. Na4 {[%clk 0:02:57.7]} 7... Bg4 {[%clk 0:02:53.3]} 8. Nxc5 {[%clk
0:02:54.4]} 8... dxc5 {[%clk 0:02:54.2]} 9. Bxf7+ {[%clk 0:02:54.2]} 9... Ke7
{[%clk 0:02:40.3]} 10. Bb3 {[%clk 0:02:52.5]} 10... Rf8 {[%clk 0:02:30.3]} 11.
c3 {[%clk 0:02:46.3]} 11... Nxb3 {[%clk 0:01:29.2]} 12. axb3 {[%clk 0:02:43.2]}
12... Nxe4 {[%clk 0:01:28.6]} 13. dxe4 {[%clk 0:02:22.7]} 13... Qxd1+ {[%clk
0:01:28.1]} 14. Kxd1 {[%clk 0:02:23.6]} 14... Rxf3 {[%clk 0:01:27.8]} 15. gxf3
{[%clk 0:02:22.9]} 15... Bxf3+ {[%clk 0:01:28.7]} 16. Ke1 {[%clk 0:02:19.6]}
16... Bxh1 {[%clk 0:01:28.3]} 17. f4 {[%clk 0:01:45.1]} 17... Bxe4 {[%clk
0:01:27.8]} 18. fxe5 {[%clk 0:01:44.1]} 18... Ke6 {[%clk 0:01:27.1]} 19. Bf4
{[%clk 0:01:42.6]} 19... Bc2 {[%clk 0:01:26.1]} 20. b4 {[%clk 0:01:39.8]} 20...
cxb4 {[%clk 0:01:27]} 21. cxb4 {[%clk 0:01:40.2]} 21... Rf8 {[%clk 0:01:23.4]}
22. Bg3 {[%clk 0:01:22.7]} 22... Be4 {[%clk 0:01:15.7]} 23. Rxa7 {[%clk
0:01:21.4]} 23... Rf3 {[%clk 0:01:15.5]} 24. Ra3 {[%clk 0:01:16.8]} 24... Rf7
{[%clk 0:01:06.4]} 25. Ke2 {[%clk 0:01:15.5]} 25... Bc6 {[%clk 0:01:04.8]} 26.
Rc3 {[%clk 0:01:09.7]} 26... Rd7 {[%clk 0:00:56.8]} 27. Ke3 {[%clk 0:01:06.4]}
27... Rf7 {[%clk 0:00:51.1]} 28. Rc5 {[%clk 0:01:02.9]} 28... Rf3+ {[%clk
0:00:48.1]} 29. Kd4 {[%clk 0:00:35.4]} 29... Rb3 {[%clk 0:00:47.1]} 30. b5
{[%clk 0:00:35.5]} 30... Rxb5 {[%clk 0:00:22.6]} 31. Rxb5 {[%clk 0:00:35.2]}
31... Bxb5 {[%clk 0:00:23.5]} 32. b4 {[%clk 0:00:34.3]} 32... Bc6 {[%clk
0:00:23.2]} 33. Kc5 {[%clk 0:00:34]} 33... g5 {[%clk 0:00:22]} 34. b5 {[%clk
0:00:30.3]} 34... Bf3 {[%clk 0:00:21.8]} 35. b6 {[%clk 0:00:30.4]} 35... cxb6+
{[%clk 0:00:19.8]} 36. Kxb6 {[%clk 0:00:30.2]} 36... h5 {[%clk 0:00:20.5]} 37.
h4 {[%clk 0:00:17.2]} 37... gxh4 {[%clk 0:00:21.4]} 38. Bh2 {[%clk 0:00:17.2]}
38... Bd5 {[%clk 0:00:19.8]} 39. Kc5 {[%clk 0:00:17.4]} 39... Bc6 {[%clk
0:00:20.1]} 40. Kd4 {[%clk 0:00:17.5]} 40... Kf5 {[%clk 0:00:20.5]} 41. Ke3
{[%clk 0:00:17.5]} 41... b5 {[%clk 0:00:20.4]} 42. e6 {[%clk 0:00:11.3]} 42...
Kxe6 {[%clk 0:00:19.9]} 43. Bc7 {[%clk 0:00:11.1]} 43... Kf5 {[%clk 0:00:19.6]}
44. Bd6 {[%clk 0:00:09.9]} 44... Kg4 {[%clk 0:00:19.3]} 45. Kf2 {[%clk
0:00:10.1]} 45... h3 {[%clk 0:00:19.1]} 46. Kg1 {[%clk 0:00:10.3]} 46... Kf3
{[%clk 0:00:18.9]} 47. Kh2 {[%clk 0:00:10.7]} 47... Ke3 {[%clk 0:00:18.9]} 48.
Kxh3 {[%clk 0:00:10.9]} 48... Kd3 {[%clk 0:00:19.1]} 49. Kh4 {[%clk 0:00:11.4]}
49... Bf3 {[%clk 0:00:19.2]} 50. Kg3 {[%clk 0:00:10]} 50... Bd1 {[%clk
0:00:19.2]} 51. Kf2 {[%clk 0:00:06.7]} 51... h4 {[%clk 0:00:15.1]} 52. Ke1
{[%clk 0:00:05.4]} 52... Bg4 {[%clk 0:00:15.2]} 53. Kf2 {[%clk 0:00:05.2]} 53...
Kc3 {[%clk 0:00:14.5]} 54. Ke3 {[%clk 0:00:02.3]} 54... b4 {[%clk 0:00:14.2]}
55. Kf4 {[%clk 0:00:02.2]} 55... Be6 {[%clk 0:00:12.5]} 56. Ke5 {[%clk
0:00:01.5]} 56... b3 {[%clk 0:00:07]} 0-1

[Event "*** Titled Tuesday Blitz"]
[Site "Chess.com"]
[Date "2020.04.14"]
[Round "9"]
[White "MisiekZielony"]
[Black "thedjoker98"]
[Result "1/2-1/2"]
[WhiteElo "2223"]
[BlackElo "2464"]
[TimeControl "180+1"]
[EndTime "11:43:45 PDT"]
[Termination "Game drawn - insufficient material"]

1. c4 {[%clk 0:02:59.2]} 1... e5 {[%clk 0:02:56.3]} 2. Nc3 {[%clk 0:02:59.1]}
2... Bb4 {[%clk 0:02:56.3]} 3. Qc2 {[%clk 0:02:58.8]} 3... Nf6 {[%clk
0:02:55.4]} 4. Nf3 {[%clk 0:02:58.2]} 4... Nc6 {[%clk 0:02:53.4]} 5. e3 {[%clk
0:02:58.2]} 5... O-O {[%clk 0:02:51.1]} 6. Nd5 {[%clk 0:02:57.5]} 6... Bc5
{[%clk 0:02:51]} 7. a3 {[%clk 0:02:54.4]} 7... a5 {[%clk 0:02:50.4]} 8. b3
{[%clk 0:02:51.1]} 8... d6 {[%clk 0:02:44.8]} 9. Bd3 {[%clk 0:02:50.2]} 9... h6
{[%clk 0:02:43.1]} 10. Nxf6+ {[%clk 0:02:46.6]} 10... Qxf6 {[%clk 0:02:42.9]}
11. Bh7+ {[%clk 0:02:40.9]} 11... Kh8 {[%clk 0:02:42.3]} 12. Be4 {[%clk
0:02:40.8]} 12... Qe7 {[%clk 0:02:35.9]} 13. Bb2 {[%clk 0:02:40.1]} 13... Be6
{[%clk 0:02:35.4]} 14. O-O {[%clk 0:02:31.6]} 14... f5 {[%clk 0:02:34.2]} 15.
Bxc6 {[%clk 0:02:30.6]} 15... bxc6 {[%clk 0:02:33.7]} 16. d4 {[%clk 0:02:30.7]}
16... e4 {[%clk 0:02:18.5]} 17. Nd2 {[%clk 0:01:38.2]} 17... Bb6 {[%clk
0:02:16.7]} 18. b4 {[%clk 0:01:37.3]} 18... axb4 {[%clk 0:02:08.5]} 19. axb4
{[%clk 0:01:37.2]} 19... c5 {[%clk 0:02:09.2]} 20. bxc5 {[%clk 0:01:34.8]} 20...
dxc5 {[%clk 0:02:10.1]} 21. d5 {[%clk 0:01:35]} 21... Bd7 {[%clk 0:02:09.8]} 22.
Rxa8 {[%clk 0:01:29]} 22... Rxa8 {[%clk 0:02:10.7]} 23. Ra1 {[%clk 0:01:28.9]}
23... Rxa1+ {[%clk 0:02:09.2]} 24. Bxa1 {[%clk 0:01:28.4]} 24... c6 {[%clk
0:02:10.1]} 25. Bc3 {[%clk 0:01:19]} 25... Kh7 {[%clk 0:01:42.2]} 26. g3 {[%clk
0:01:11.3]} 26... Bc7 {[%clk 0:01:23]} 27. Qb2 {[%clk 0:01:07.1]} 27... Be8
{[%clk 0:01:11.6]} 28. Nb3 {[%clk 0:00:50.1]} 28... cxd5 {[%clk 0:00:44.9]} 29.
cxd5 {[%clk 0:00:48.2]} 29... Bh5 {[%clk 0:00:45.1]} 30. Nd2 {[%clk 0:00:39.6]}
30... Bf3 {[%clk 0:00:42.5]} 31. Nxf3 {[%clk 0:00:35.3]} 31... exf3 {[%clk
0:00:43.4]} 32. Qd2 {[%clk 0:00:34.9]} 32... Qe4 {[%clk 0:00:41.8]} 33. Qd1
{[%clk 0:00:30]} 33... Kg6 {[%clk 0:00:39.8]} 34. h3 {[%clk 0:00:29.5]} 34...
Bxg3 {[%clk 0:00:36.3]} 35. d6 {[%clk 0:00:29.4]} 35... Bxf2+ {[%clk 0:00:23]}
36. Kxf2 {[%clk 0:00:28.8]} 36... Qh4+ {[%clk 0:00:23.2]} 37. Kf1 {[%clk
0:00:20.8]} 37... Qxh3+ {[%clk 0:00:23.1]} 38. Ke1 {[%clk 0:00:20.6]} 38... Qg3+
{[%clk 0:00:17.1]} 39. Kd2 {[%clk 0:00:20.2]} 39... Qxd6+ {[%clk 0:00:17.4]} 40.
Kc2 {[%clk 0:00:19]} 40... Qxd1+ {[%clk 0:00:16.2]} 41. Kxd1 {[%clk 0:00:18.4]}
41... Kh5 {[%clk 0:00:16.6]} 42. Bxg7 {[%clk 0:00:16.4]} 42... Kg5 {[%clk
0:00:15.5]} 43. Ke1 {[%clk 0:00:16.2]} 43... c4 {[%clk 0:00:15.1]} 44. Kf2
{[%clk 0:00:15.5]} 44... f4 {[%clk 0:00:14.9]} 45. e4 {[%clk 0:00:15.4]} 45...
h5 {[%clk 0:00:15.2]} 46. Kxf3 {[%clk 0:00:15]} 46... h4 {[%clk 0:00:15.7]} 47.
Bc3 {[%clk 0:00:14.3]} 47... h3 {[%clk 0:00:15.7]} 48. Bd2 {[%clk 0:00:12.7]}
48... Kf6 {[%clk 0:00:11.2]} 49. Bxf4 {[%clk 0:00:12.6]} 49... c3 {[%clk
0:00:11.7]} 50. Kg3 {[%clk 0:00:12.6]} 50... c2 {[%clk 0:00:11.5]} 51. Kxh3
{[%clk 0:00:09.9]} 51... c1=Q {[%clk 0:00:11.4]} 52. Bxc1 {[%clk 0:00:09.9]}
52... Ke5 {[%clk 0:00:12.3]} 53. Kg3 {[%clk 0:00:09.7]} 53... Kxe4 {[%clk
0:00:10.6]} 1/2-1/2